Cogmind - Beta 9.2 @@@ ROGUE MODE // 2019.11.15 @ 22:34:51 Player: Enzo Result: Destroyed by as-21239 with Assembled Heavy Rifle Performance ------------- Evolutions (0) 0 Regions Visited (2) 400 Robots Destroyed (16) 80 Value Destroyed (264) 264 Prototype IDs (2) 40 Alien Tech Used (0) 0 Bonus (0) 0 TOTAL SCORE: 784 Bonus ------- None Cogmind --------- Core Integrity 0/250 Matter 300/300 Energy 99/100 System Corruption 0% Temperature Cool (0) Movement Core (100) Ox1 Location -10/Mines Parts ------- > --- POWER (1) -------- (None) > --- PROPULSION (2) --- (None) > --- UTILITY (2) ------ Small Storage Unit > --- WEAPON (2) ------- (None) > --- INVENTORY (6) ---- Improved Treads Improved Treads Improved Treads Improved Heat Sink Visual Processing Unit Sensor Array Peak State ------------ > --- POWER ------------ Light Nuclear Core > --- PROPULSION ------- Improved Treads Improved Treads > --- UTILITY ---------- Improved Heat Sink Small Storage Unit > --- WEAPON ----------- Heavy EM Pulse Gun Heavy EM Pulse Gun > --- INVENTORY -------- Improved Treads Improved Treads Visual Processing Unit Sensor Array Heavy EM Pulse Gun Heavy EM Pulse Gun [Rating: 16] Favorites ----------- Power Light Nuclear Core Engine Ion Engine Power Core Light Nuclear Core Propulsion Improved Treads Treads Improved Treads Wheel Wheel Utility Small Storage Unit Device Improved Heat Sink Storage Small Storage Unit Weapon Heavy EM Pulse Gun Energy Gun Heavy EM Pulse Gun Build | -11 -10 -10 ------- Run | Scr Mat Min Slots Evolved . | . . . Power . | . . . Propulsion . | . . . Utility . | . . . Weapon . | . . . Parts Attached 16 | 6 7 3 Power 2 | 1 1 . Engine 1 | 1 . . Core 1 | . 1 . Reactor . | . . . Propulsion 4 | 2 2 . Treads 2 | . 2 . Leg . | . . . Wheel 2 | 2 . . Hover . | . . . Flight . | . . . Utility 4 | 1 2 1 Device 3 | . 2 1 Storage 1 | 1 . . Processor . | . . . Hackware . | . . . Protection . | . . . Artifact . | . . . Weapon 6 | 2 2 2 Energy Gun 6 | 2 2 2 Energy Cannon . | . . . Ballistic Gun . | . . . Ballistic Cannon . | . . . Launcher . | . . . Special Weapon . | . . . Impact Weapon . | . . . Slashing Weapon . | . . . Piercing Weapon . | . . . Special Melee Weapon . | . . . Unidentified Prototypes . | . . . Parts Lost 5 | . . 5 Power . | . . . Propulsion 1 | . . 1 Utility . | . . . Weapon 4 | . . 4 Highest Loss Streak 3 | . . 3 Average Slot Usage (%) 95 | . 97 93 Engine 6 | . 11 . Core 7 | . 1 13 Treads 25 | . 23 26 Wheel 2 | . 4 . Device 12 | . 11 13 Storage 14 | . 14 14 Energy Gun 26 | . 28 24 Naked Turns . | . . . Heaviest Build 16 | 13 16 16 Greatest Support 46 | 20 46 46 Greatest Overweight (x) 1 | . . 1 Average Overweight (x) . | . . . Largest Inventory Capacity 6 | 6 6 6 Average Capacity 5 | 5 6 6 Most Carried 6 | . 6 6 Average Carried 4 | . 4 5 Final Capacity 6 | 6 6 6 Final Carried 6 | . 6 6 Class Distribution -------------------- 100% | Mutant Dominant Class ---------------- Mutant | -10/Materials Mutant | -10/Mines Resources | -11 -10 -10 ----------- Run | Scr Mat Min Matter Collected 360 | 260 70 30 Remotely . | . . . Salvage Created 421 | . 249 172 Parts 27 | . 24 3 Haulers Intercepted . | . . . Recyclers Shooed . | . . . Parts Field Recycled . | . . . Retrieved Matter . | . . . Parts Self-Destructed . | . . . Prevented . | . . . Kills | -11 -10 -10 ------- Run | Scr Mat Min Combat Hostiles Destroyed 14 | . 8 6 Guns 14 | . 8 6 Classes Destroyed 4 | . 3 1 Watcher 2 | . 2 . Swarmer 6 | . 6 . Grunt 4 | . 2 2 Assembled 4 | . . 4 Best Kill Streak 3 | . 3 3 Combat Bots Only 3 | . 3 3 Max Kills in Single Turn 1 | . 1 1 Gunslinging . | . . . Exploded . | . . . Melee . | . . . Uniques/NPCs Destroyed . | . . . Combat | -11 -10 -10 -------- Run | Scr Mat Min Damage Taken 955 | . 231 724 Core 252 | . 7 245 Absorbed by Shields . | . . . Core Remaining (%) 100 | 100 . . Volleys Fired 40 | . 19 21 Largest 2 | . 2 2 Hottest 90 | . 90 90 Shots Fired 70 | . 38 32 Gun 70 | . 38 32 Cannon . | . . . Launcher . | . . . Special . | . . . Kinetic . | . . . Thermal . | . . . Explosive . | . . . Electromagnetic 70 | . 38 32 Robot Hit Streak 11 | . 8 11 Robot Miss Streak 4 | . 4 1 Penetration Max . | . . . Secondary Targets 1 | . . 1 Max Gunslinging Chain 1 | . . 1 Shots Hit Robots 41 | . 17 24 Core Hits 21 | . 11 10 Critical Hits . | . . . Critical Kills . | . . . Critical Parts Destroyed . | . . . Melee Attacks . | . . . Impact . | . . . Slashing . | . . . Piercing . | . . . Sneak Attacks . | . . . Combat Hostiles . | . . . Follow-up Attacks . | . . . Damage Inflicted 556 | . 262 294 Guns 556 | . 262 294 Cannons . | . . . Explosions . | . . . Melee . | . . . Ramming . | . . . Kinetic . | . . . Thermal . | . . . Explosive . | . . . Electromagnetic 556 | . 262 294 Impact . | . . . Slashing . | . . . Piercing . | . . . Highest Corruption . | . . . Average Corruption . | . . . Corruption Purged . | . . . Overload Shots . | . . . Overflow Damage . | . . . Projectiles . | . . . Explosions . | . . . Melee . | . . . Knockbacks . | . . . Impact . | . . . Kinetic . | . . . Secondary . | . . . Self-Inflicted Damage . | . . . Shots . | . . . Rammed . | . . . Targets Rammed . | . . . Kicked . | . . . Crushed . | . . . Highest Temperature 34 | . 18 34 Average Temperature 17 | . 11 18 Received Heat Transfer 234 | . 36 198 Siege Activations . | . . . Robots Corrupted . | . . . Combat Hostiles . | . . . Parts Fried 2 | . 2 . Impact Corruptions . | . . . Robots Melted . | . . . Combat Hostiles . | . . . Parts Melted . | . . . Heat Transferred . | . . . Parts Sabotaged . | . . . Parts Stolen . | . . . Parts Stripped . | . . . Power Chain Reactions . | . . . Missiles Intercepted . | . . . Alert | -11 -10 -10 ------- Run | Scr Mat Min Peak Influence 219 | . 219 135 Average Influence 92 | . 73 127 Maximum Alert Level 1 | . 1 . Low Security (%) 91 | 100 83 100 Level 1 8 | . 16 . Level 2 . | . . . Level 3 . | . . . Level 4 . | . . . Level 5 . | . . . High Security . | . . . Max Security . | . . . Squads Dispatched 2 | . 2 . Investigation . | . . . Extermination . | . . . Reinforcement 2 | . 2 . Assault . | . . . Garrison . | . . . Intercept . | . . . Construction Impeded . | . . . Haulers Reinforced . | . . . Stealth | -11 -10 -10 --------- Run | Scr Mat Min Distress Signals 1 | . 1 . Communications Jammed . | . . . Distress Signals . | . . . Times Spotted 25 | . 13 12 Peak Tracking Total 7 | . 4 7 Tactical Retreats 1 | . 1 . Traps | -11 -10 -10 ------- Run | Scr Mat Min Traps Triggered . | . . . Indirectly . | . . . Trap Hack Attempts . | . . . Triggered . | . . . Disarmed . | . . . Reprogrammed . | . . . Reused . | . . . Traps Extracted . | . . . Installed . | . . . Triggered . | . . . Machines | -11 -10 -10 ---------- Run | Scr Mat Min Machines Disabled 2 | . 2 . Max in Single Turn 1 | . 1 . Machines Sabotaged . | . . . Garrisons Compromised . | . . . Overloaded Fab Kills . | . . . Fab Network Shutdowns . | . . . Hacking | -11 -10 -10 --------- Run | Scr Mat Min Machines Accessed 2 | . 2 . Terminals 1 | . 1 . Fabricators . | . . . Repair Stations . | . . . Recycling Units 1 | . 1 . Scanalyzers . | . . . Garrison Access . | . . . Total Hacks 6 | . 6 . Successful 2 | . 2 . Failed 4 | . 4 . Catastrophic . | . . . Database Lockouts . | . . . Manual . | . . . Terminals 3 | . 3 . Fabricators . | . . . Repair Stations . | . . . Recycling Units 3 | . 3 . Scanalyzers . | . . . Garrison Access . | . . . Terminal Hacks 1 | . 1 . Prototype ID Bank 1 | . 1 . Fabricator Hacks . | . . . Repair Station Hacks . | . . . Recycling Unit Hacks 1 | . 1 . Report Inventory 1 | . 1 . Scanalyzer . | . . . Garrison Access Hacks . | . . . Unauthorized Hacks . | . . . Terminals . | . . . Fabricators . | . . . Repair Stations . | . . . Recycling Units . | . . . Scanalyzers . | . . . Garrison Access . | . . . Data Cores Recovered . | . . . Used . | . . . Hacking Detections 2 | . 2 . Full Trace Events . | . . . Feedback Events . | . . . Feedback Blocked . | . . . Robot Schematics Acquired . | . . . Robots Built . | . . . Matter . | . . . Time . | . . . Total Robot Build Rating . | . . . Part Schematics Acquired . | . . . Parts Built . | . . . Matter . | . . . Time . | . . . Total Part Build Rating . | . . . Parts Repaired . | . . . Time . | . . . Parts Recycled . | . . . Recycled Matter . | . . . Retrieved Matter . | . . . Retrieved Components . | . . . Parts Scanalyzed . | . . . Part Schematics Acquired . | . . . Parts Damaged . | . . . Bothacking | -11 -10 -10 ------------ Run | Scr Mat Min Used RIF Installer . | . . . Robots Hacked . | . . . Non-combat . | . . . Combat . | . . . Robot Hacks Applied . | . . . Relay Couplers Released . | . . . Robots Rewired . | . . . Allies Hacked . | . . . Hacks Repelled . | . . . Allies | -11 -10 -10 -------- Run | Scr Mat Min Total Allies . | . . . Largest Group . | . . . Highest-Rated Group . | . . . Highest-Rated Ally . | . . . Total Orders . | . . . Ally Attacks . | . . . Total Damage . | . . . Kills . | . . . Allies Corrupted . | . . . Allies Melted . | . . . Intel | -11 -10 -10 ------- Run | Scr Mat Min Robot Analysis Total . | . . . Derelict Logs Recovered . | . . . Drone Launches . | . . . Drone Recoveries . | . . . Exploration | -11 -10 -10 ------------- Run | Scr Mat Min Turns Passed 644 | 38 327 279 Spaces Moved 338 | 39 156 143 Core 21 | 7 . 14 Treads 247 | . 118 129 Legs . | . . . Wheels 70 | 32 38 . Hover . | . . . Flight . | . . . Fastest Speed 50 | 50 80 100 Average Speed 138 | 74 140 154 Slowest Speed 160 | 80 160 160 Overloaded Moves . | . . . Propulsion Burnouts . | . . . Robots Hopped . | . . . Cave-ins Triggered . | . . . Exploration Rate (%) 22 | 3 33 30 Regions Visited 2 Branch Regions 1 Pre-discovered Areas . | . . . Known Exits Taken . | . . . Unknown Exits Taken 2 | 1 1 . Scrap Searched . | . . . Spaces Dug . | . . . Terrain Destroyed . | . . . Melee . | . . . Projectile . | . . . AOE . | . . . Actions | -11 -10 -10 --------- Run | Scr Mat Min Total 442 | 44 226 172 Wait 29 | . 28 1 Move 336 | 38 155 143 Hop . | . . . Pick Up 9 | . 9 . Fast Attach 11 | 6 5 . Attach 2 | . . 2 Detach 3 | . 1 2 Swap 3 | . 2 1 Drop 9 | . 7 2 Fire 40 | . 19 21 Melee . | . . . Ram . | . . . Kick . | . . . Crush . | . . . Escape Stasis . | . . . Rewire . | . . . Trap . | . . . Miscellaneous . | . . . Route ------- -11/Scrapyard -10/Materials (discovered 2 exits: [*Min x2]) -10/Mines History --------- Turn | Location | Event 20 | -11/Scrapyard | Discovered new exit (range 16) 39 | -11/Scrapyard | Entered Materials 58 | -10/Materials | Discovered new exit (range 4) 244 | -10/Materials | Discovered new exit (range 15) 312 | -10/Materials | Build established: Mutant 366 | -10/Materials | Entered Mines 423 | -10/Mines | Assembled infested the area 632 | -10/Mines | Core integrity fell below 50% 642 | -10/Mines | Core integrity fell below 20% 645 | -10/Mines | Destroyed by as-21239 with Assembled Heavy Rifle Last Messages --------------- 00577_ R-06 Scavenger collects Lgt. Ion Engine. 00579_ Hvy. EM Pulse Gun destroyed. 00580_ R-06 Scavenger collects Wheel. 00584_ R-06 Scavenger collects Lgt. Ion Engine. 00586_ as-29924 destroyed. 00587_ R-06 Scavenger collects Wheel. 00589_ Acquired 20 matter. 00621_ T-07 Excavator destroyed. 00623_ K-01 Serf collects debris. 00623_ Hvy. EM Pulse Gun destroyed. 00626_ R-06 Scavenger collects Wheel. 00627_ K-01 Serf collects debris. 00628_ Imp. Treads destroyed. 00628_ as-39287 destroyed. 00629_ R-06 Scavenger collects Sml. Matter Pod. 00629_ Hvy. EM Pulse Gun destroyed. 00630_ K-01 Serf collects debris. 00630_ K-01 Serf destroyed. 00631_ Dropped Lgt. Nuclear Core. 00632_ R-06 Scavenger destroyed. Map ----- +----------------------------------------------------+ | ?????????????????????????????????????????????????? | | ?????????????????????????????????????????????????? | | ?????????????????????????????????????????????????? | | ?????????????????????????????????????????????????? | | ?????????????????????????????????????????????????? | | ?????????????????????????????????????????????????? | | ?????????????????????????????????????????????????? | | ?????????????????????????????????????????????????? | | ?????????????????????????????????????????????????? | | ?????????????????????????????????????????????????? | | ?????????????????????????????????????????????????? | | ???????????????????????#???? ????????????????????? | | ??????????????????????? #??# ????????????????????? | | ??????????????????????? ## ?????????????????????? | | ??????????????????????? ?????????????????????? | | ???????????????????????" a ?????????????????????? | | ?????????????????????""" ?????????????????????? | | ??????????????????????"" ?????????????????????? | | ????????????????????? #?????????????????????? | | ????????????????????? ##????????????????????? | | ????????????????????? ?????????????????????? | | ?????????? ????????? ?????????????????????? | | ?????????? #????????# #?????????????????????? | | ?????????? #????????# # #?????????????????????? | | ?????????? #????????# # #?????????????????????? | | ?????????? #????????# #@ #?????????????????????? | | ?????????# ##???????# # #?????????????????????? | | ???????### ##??????# # *#?????????????????????? | | ??????## #??????# #!a#?????????????????????? | | ??????# ##????## *=#?????????????????????? | | ?????## #???## %!%#?????????????????????? | | ?????? #???# =##????????????????????? | | ??????? #????# ! ##????????????#??????? | | ??????## #?????# ==!%##?????????? ##?????? | | ####?## #?????## = ^*%*! ##??????## ##????? | | ### #?????# % a!*=% ##????# #????? | | ?# #?????# ^^# *= = ##### #????? | | ?# ## ##????# # # % % #??????????? | | ?# ## ## ######|# ^ % ##??????????? | | ## ###### ##!# ## ## % ###???????????? | | # #????## !%^= #######% #?????????????? | | # #?????## *#### ##?????# #?????????????? | | ##??????#######??#####??????# #?????????????? | | #??????????????????????###### #?????????????? | | #??????????????????????# #?????????????? | | #??????????????????????# #?????????????? | | ##??????????????????????# ######?????????????? | | ##???????????????????????# #??????????????????? | | ##????????????????????????# #?####?????????????? | | #?????????????????????????# ## ##????????????? | +----------------------------------------------------+ Best States ------------- Heat Dissipation 39 Energy Generation 14 Energy Capacity 250 Matter Stores 300 Matter Capacity 300 Sight Range 16 Terrain Scan Density 10 Heat Shielding 75 Evasion (%) 44 Recoil Reduction 2 Item Schematics ----------------- None Robot Schematics ------------------ None Fabricated ------------ Nothing Alien Tech Used ----------------- None Achievements -------------- None Challenges ------------ None Game ------ Seed BoreGaussNegator Manual? 0 Play Time 00:08:33 Cumulative 9.7 hours Start 2019.11.15 @ 22:26:25 End 2019.11.15 @ 22:34:51 Sessions 1 Manual Loads 0 Difficulty Rogue Special Mode None Game No. 23 Rogue 23 Adventurer 0 Explorer 0 Win Type - Total 0 Types 0/0/0/0/0/0/0 Lore% 29 Gallery% 24 Achievement% 23 Wizard Run 0 Options --------- ASCII 0 Keyboard 0 Movement Numpad Keybinds 0 Fullscreen 2 Font 24/Smallcaps Map View 76x50 Tactical HUD 1 Map Filters NONE Filters NONE Steam 1 RUN: a2c5d197-e3d7-4070-a871-e9d325bb52e8